bitfinex/quotes_ETHUSD_20260119
["timestamp","ask_amount","ask_price","bid_price","bid_amount"]
[1768781815909,16.165978,3215.2,3213.1,0.002]
[1768781816110,0.128,3215.6,3213.1,0.002]
[1768781816285,30.0,3215.3,3213.1,0.002]
[1768781816488,30.0,3215.0,3213.1,0.002]
[1768781816705,15.5482306,3215.8,3212.5,0.001]
[1768781816706,13.331047,3214.4,3212.5,0.001]
[1768781816875,15.5482306,3215.8,3212.5,3.11383021]
[1768781816876,30.0,3215.3,3212.5,3.11383021]
[1768781817080,5.45544772,3214.7,3212.5,0.001]
[1768781817279,5.011183,3214.6,3212.5,0.001]
[1768781817577,9.694089,3214.4,3212.5,0.001]
[1768781817773,12.44361484,3214.5,3211.9,0.002]
[1768781817774,30.0,3214.2,3211.9,0.002]
[1768781817983,5.807008,3214.2,3211.7,3.1135797]
[1768781818220,24.178629,3213.9,3210.8,3.11439223]
[1768781818393,5.45544772,3214.0,3210.7,0.002]
[1768781818394,13.587953,3213.6,3210.7,0.002]
[1768781818574,0.128,3213.7,3210.4,0.002]
[1768781818575,23.748811,3213.4,3210.4,0.002]
[1768781818778,30.0,3213.2,3210.4,0.002]
[1768781819226,10.931257,3213.4,3210.5,3.11772384]
[1768781819379,10.931257,3213.4,3210.5,0.003]
[1768781819578,2.333798,3213.2,3210.5,0.003]
[1768781819780,14.793747,3213.0,3210.5,0.003]
[1768781820414,0.85579289,3213.1,3210.5,0.003]
[1768781820584,4.034549,3213.5,3210.5,0.003]
[1768781820801,3.54887025,3213.6,3210.4,0.002]
[1768781820802,1.53964907,3212.5,3210.4,0.002]
[1768781820989,15.612608,3211.8,3209.1,3.1170475]
[1768781821185,0.437,3212.2,3209.5,3.11572446]
[1768781821387,4.202995,3213.0,3210.0,3.11526479]
[1768781821601,4.69129165,3214.6,3209.6,0.31157245]
[1768781821602,6.22413094,3213.3,3209.8,12.74094193]
[1768781821796,5.58344772,3213.1,3209.9,12.74094193]
[1768781821997,5.58344772,3213.1,3209.7,3.11555597]
[1768781821998,6.22413094,3213.3,3210.0,0.431]
[1768781822181,6.22413094,3213.3,3209.6,0.31157245]
[1768781822182,5.45544772,3212.6,3209.6,0.31157245]
[1768781822383,15.605917,3212.4,3209.6,6.23128347]
[1768781822714,15.605917,3212.4,3209.1,0.001]
[1768781822715,29.935113,3212.3,3209.1,0.001]
[1768781822915,0.98254477,3212.5,3209.1,0.001]
[1768781822916,30.0,3211.4,3209.1,0.001]
[1768781823214,16.769828,3211.4,3209.1,0.001]
[1768781823431,5.45544772,3211.5,3207.9,12.74094193]
[1768781823432,12.118193,3210.7,3208.0,3.11718418]
[1768781823604,0.437,3211.3,3207.3,3.11788731]
[1768781823605,5.45544772,3210.1,3207.3,3.11788731]
[1768781823794,5.45544772,3210.1,3207.3,9.35366193]
[1768781824130,11.1014119,3210.6,3207.7,12.74094193]
[1768781824131,1.75736407,3210.6,3207.7,12.74094193]
[1768781824430,0.437,3211.3,3207.3,6.23577462]
[1768781824431,19.033455,3210.2,3207.3,6.23577462]
[1768781824632,6.269481,3211.1,3207.4,12.74094193]
[1768781824795,12.837758,3211.1,3207.5,7.367]
[1768781824995,2.978319,3211.1,3207.6,12.74094193]
[1768781825196,2.978319,3211.1,3207.8,5.997709]
[1768781825530,9.3434658,3210.8,3208.0,3.11720698]
[1768781825734,9.3434658,3210.8,3207.9,0.60749905]
[1768781825735,17.210562,3210.7,3207.9,0.00772767]
[1768781826030,17.210562,3210.7,3207.2,3.84541034]
[1768781826031,5.50544772,3210.4,3207.2,0.72744313]
[1768781826326,30.0,3210.3,3206.9,0.431]
[1768781826530,5.45544772,3209.8,3206.7,3.11846418]
[1768781826706,12.252674,3209.6,3206.6,12.74094193]
[1768781826903,0.54554477,3209.7,3205.0,0.235]
[1768781826904,30.0,3209.4,3205.6,15.86044734]
[1768781827118,0.59554477,3209.7,3205.8,13.17194193]
[1768781827317,0.54554477,3209.7,3206.9,20.211689]
[1768781827522,0.54554477,3209.7,3205.0,0.235]
[1768781827523,5.45544772,3208.3,3205.0,0.235]
[1768781827696,5.45544772,3208.3,3205.0,6.47521527]
[1768781827697,0.128,3208.0,3205.0,6.47521527]
[1768781827925,7.21757007,3208.2,3205.0,6.47521527]
[1768781827926,0.162204,3207.2,3205.4,12.74094193]
[1768781828090,0.162204,3207.2,3205.0,12.71546487]
[1768781828091,3.82881,3208.2,3205.6,12.74094193]
[1768781828290,3.82881,3208.2,3205.5,0.431]
[1768781828291,8.194392,3209.2,3206.0,12.74094193]
[1768781828498,0.438,3209.6,3206.2,12.74094193]
[1768781828499,1.44262806,3209.1,3206.2,12.74094193]
[1768781828691,0.438,3209.6,3206.3,5.084083]
[1768781828892,0.438,3209.6,3205.5,0.431]
[1768781828893,24.577678,3209.6,3206.6,12.74094193]
[1768781829096,0.128,3209.5,3205.1,12.74094193]
[1768781829298,25.49909,3209.6,3205.0,12.71546487]
[1768781829299,0.05,3209.1,3205.8,12.74094193]
[1768781829584,0.05,3209.1,3205.2,0.431]
[1768781829585,15.34770748,3209.7,3205.9,18.23036593]
[1768781829700,29.46351,3209.5,3206.1,12.74094193]
[1768781829953,1.53477075,3209.6,3206.1,12.74094193]
[1768781829954,1.53477075,3209.6,3206.8,12.74094193]
[1768781830110,12.6709711,3211.3,3207.1,18.13790193]
[1768781830111,14.782927,3211.1,3207.1,18.13790193]
[1768781830302,30.0,3210.5,3206.7,0.002]
[1768781830534,0.001,3208.7,3206.8,0.431]
[1768781830734,0.001,3208.7,3206.9,12.74094193]
[1768781830948,0.001,3208.7,3206.9,13.17194193]
[1768781831122,0.001,3208.7,3207.0,5.27681]
[1768781831331,0.001,3208.7,3206.9,13.17194193]
[1768781831332,0.001,3208.7,3206.9,12.74094193]
[1768781831512,0.001,3208.7,3206.7,0.002]
[1768781831717,0.001,3208.7,3206.7,0.433]
[1768781831937,0.001,3208.7,3205.8,3.11934618]
[1768781831938,5.45544772,3208.5,3205.8,3.11934618]
[1768781832250,0.97026407,3208.4,3205.8,6.23869236]
[1768781832397,0.001,3208.7,3205.9,18.01150233]
[1768781832751,0.001,3208.7,3206.0,0.431]
[1768781832946,0.001,3208.7,3206.1,2.66612]
[1768781833102,0.001,3208.7,3205.9,4.957584]
[1768781833427,0.001,3208.7,3206.0,0.431]
[1768781833630,0.001,3208.7,3206.2,6.23791404]
[1768781833843,0.001,3208.7,3206.3,0.431]
[1768781834147,0.001,3208.7,3206.2,3.11895702]
[1768781834298,0.001,3208.7,3206.4,0.431]
[1768781834801,0.001,3208.7,3206.5,0.431]
[1768781835025,0.001,3208.7,3206.2,3.11895702]
[1768781835332,0.001,3208.7,3206.6,0.431]
[1768781835705,0.001,3208.7,3206.6,6.66809526]
[1768781836114,0.001,3208.7,3206.6,9.78666321]
[1768781836326,0.001,3208.7,3206.7,30.0]
[1768781836505,0.05,3211.2,3206.7,30.0]
[1768781836506,26.72805,3211.4,3207.6,0.0921574]
[1768781836716,3.11323601,3212.1,3208.2,12.74094193]
[1768781836965,5.45544772,3212.4,3208.2,12.74094193]
[1768781836966,2.982348,3212.2,3208.4,30.0]
[1768781837171,12.7209711,3212.5,3208.6,42.83309933]
[1768781837172,12.6709711,3212.5,3208.6,42.83309933]
[1768781837304,15.093249,3212.0,3208.7,4.100641]
[1768781837505,1.26709711,3212.4,3208.8,42.83309933]
[1768781837813,3.11180107,3213.6,3208.7,0.431]
[1768781837814,4.080036,3213.4,3210.0,30.0]
[1768781838144,4.080036,3213.4,3209.4,18.19638965]
[1768781838145,12.6709711,3213.4,3210.2,10.05127]
[1768781838316,8.56721681,3213.7,3210.2,10.05127]
[1768781838317,4.815242,3213.3,3210.2,3.88797]
[1768781838505,22.00484371,3214.1,3209.4,18.19638965]
[1768781838506,5.45544772,3212.8,3210.3,0.431]
[1768781838701,4.020938,3213.3,3210.3,0.431]
[1768781839014,12.6709711,3213.4,3209.1,9.34841544]
[1768781839015,5.45544772,3212.7,3209.1,9.34841544]
[1768781839322,1.66919091,3213.2,3209.3,13.713499]
[1768781839323,5.813598,3212.6,3209.3,13.713499]
[1768781839498,1.66919091,3213.2,3209.3,11.29874]
[1768781839499,4.088545,3213.1,3209.3,11.29874]
[1768781839705,1.66919091,3213.2,3209.5,11.960339]
[1768781839706,13.006916,3212.9,3209.5,11.960339]
[1768781839922,11.105126,3212.9,3209.6,0.431]
[1768781840143,3.114,3212.7,3209.6,0.431]
[1768781840342,5.45544772,3212.0,3209.1,3.11612581]
[1768781840560,5.45544772,3211.3,3207.4,21.31410786]
[1768781840706,13.894051,3211.2,3208.7,3.11644861]
[1768781840903,13.894051,3211.2,3207.4,15.85866014]
[1768781840904,5.45544772,3210.7,3208.8,0.431]
[1768781841251,0.178,3211.8,3207.9,13.144552]
[1768781841252,0.54554477,3210.6,3207.9,13.144552]
[1768781841406,6.196051,3212.2,3209.4,3.11584719]
[1768781841601,6.196051,3212.2,3208.6,3.11660907]
[1768781841602,6.2264562,3212.1,3209.5,3.54665913]
[1768781841840,3.11289347,3212.5,3209.5,3.54665913]
[1768781841841,12.6709711,3213.3,3209.6,30.0]
[1768781842175,12.6709711,3213.3,3209.5,6.66240924]
[1768781842176,3.11128089,3214.2,3210.0,26.109772]
[1768781842346,19.037322,3213.8,3209.6,30.0]
[1768781842552,15.83207472,3214.3,3210.9,0.0921574]
[1768781842553,12.6709711,3214.3,3210.9,0.0921574]
[1768781842860,2.329045,3215.3,3212.1,22.298359]
[1768781843073,12.00897456,3215.4,3211.7,5.45544772]
[1768781843074,12.00897456,3215.4,3212.3,18.342822]
[1768781843277,12.00897456,3215.4,3212.2,0.431]
[1768781843278,1.20089746,3215.3,3212.8,25.564379]
[1768781843449,15.11794393,3216.5,3212.8,25.564379]
[1768781843650,30.0,3216.4,3212.9,12.44981168]
[1768781843979,30.0,3216.4,3213.0,11.109669]
[1768781844187,30.0,3216.4,3213.2,26.232992]
[1768781844188,4.055292,3216.4,3213.2,26.232992]
[1768781844465,4.055292,3216.4,3212.9,12.44981168]
[1768781844466,3.10906603,3216.4,3213.3,0.431]
[1768781844652,3.130977,3216.2,3213.3,0.431]
[1768781844857,3.130977,3216.2,3212.9,6.22490584]
[1768781845048,3.130977,3216.2,3213.1,3.196321]
[1768781845570,3.130977,3216.2,3213.2,0.431]
[1768781845769,6.24023792,3216.2,3213.3,9.33619641]
[1768781846065,1.51180406,3216.3,3213.3,9.33619641]
[1768781846066,0.7752042,3216.1,3213.4,0.431]
[1768781846234,25.146788,3216.2,3213.4,0.431]
[1768781846434,3.114,3216.2,3213.4,0.431]
[1768781846668,3.114,3216.2,3213.3,3.11206547]
[1768781846873,3.10790651,3217.6,3213.8,0.0921574]
[1768781847075,1.51168811,3217.5,3214.6,0.0921574]
[1768781847236,0.051,3219.0,3214.6,0.0921574]
[1768781847237,20.57126665,3218.7,3214.9,30.0]
[1768781847454,0.001,3219.0,3215.2,0.0921574]
[1768781847673,6.2134957,3218.8,3215.1,12.44129264]
[1768781847833,0.001,3219.0,3215.5,0.0921574]
[1768781848036,0.001,3219.0,3216.0,30.0]
[1768781848340,12.00897456,3220.9,3217.2,0.0921574]
[1768781848668,12.00897456,3220.9,3217.0,0.0921574]
[1768781848669,17.468151,3221.0,3217.3,6.7094924]
[1768781848838,17.51442228,3222.1,3217.9,0.0921574]
[1768781849035,17.51442228,3222.1,3217.3,1.26088503]
[1768781849036,13.157868,3221.8,3217.5,0.0921574]
[1768781849246,4.814628,3221.6,3217.7,30.0]
[1768781849483,1.3157868,3221.7,3218.2,9.953882]
[1768781849769,1.3157868,3221.7,3218.1,0.0921574]
[1768781849770,9.863989,3222.0,3218.6,16.06544]
[1768781849950,3.635144,3222.3,3218.6,15.35077]
[1768781850147,5.45544772,3223.1,3219.2,30.0]
[1768781850148,2.485085,3223.1,3219.2,30.0]
[1768781850488,2.485085,3223.1,3219.3,0.431]
[1768781850489,27.947915,3222.1,3219.3,0.431]
[1768781850787,27.947915,3222.1,3217.6,12.35855745]
[1768781850788,12.00897456,3222.0,3217.6,12.35855745]
[1768781850980,12.00897456,3222.0,3216.9,0.0921574]
[1768781850981,0.128,3221.0,3216.8,3.10861606]
[1768781851133,15.168126,3220.9,3217.7,0.431]
[1768781851337,0.128,3220.8,3216.5,12.35855745]
[1768781851540,15.363854,3220.5,3216.7,30.0]
[1768781851767,12.00897456,3220.9,3216.5,3.10895739]
[1768781851768,30.0,3219.8,3216.5,3.10895739]
[1768781851959,13.64171,3219.2,3216.6,0.431]
[1768781852172,5.9345,3219.2,3216.6,0.431]
[1768781852377,5.9345,3219.2,3215.4,12.35855745]
[1768781852378,15.102781,3219.1,3215.8,3.10964005]
[1768781852579,15.102781,3219.1,3214.4,16.547854]
[1768781852580,14.50384,3218.3,3214.4,16.547854]
[1768781852740,0.128,3219.0,3215.0,3.11039064]
[1768781852741,1.99592877,3218.2,3215.0,3.11039064]
[1768781852942,9.31705953,3219.9,3215.5,0.0921574]
[1768781853154,9.31705953,3219.9,3216.5,3.10891841]
[1768781853155,5.45544772,3219.6,3216.5,3.10891841]
[1768781853383,14.284323,3219.5,3216.6,0.431]
[1768781853557,14.284323,3219.5,3216.5,3.10891841]
[1768781853558,3.10568651,3219.9,3216.7,0.431]
[1768781853878,2.05701088,3219.8,3216.8,12.43471772]
[1768781854078,0.05,3221.1,3217.1,30.0]
[1768781854079,3.1046148,3221.1,3217.1,30.0]
[1768781854282,3.1046148,3221.1,3217.3,8.619242]
[1768781854283,2.322392,3221.1,3217.3,8.619242]
[1768781854477,2.322392,3221.1,3217.4,0.431]
[1768781854639,7.128688,3221.8,3217.5,17.6916794]
[1768781854840,3.10375865,3221.9,3217.8,30.0]
[1768781855063,3.897967,3221.7,3217.7,30.0]
[1768781855280,3.897967,3221.7,3218.0,30.0]
[1768781855458,3.897967,3221.7,3217.9,1.6121646]
[1768781855459,0.58985502,3221.8,3218.6,30.0]
[1768781855783,0.05,3223.3,3218.5,0.0921574]
[1768781855784,5.45544772,3223.0,3219.1,0.0921574]
[1768781855981,3.10245809,3223.3,3219.1,0.0921574]
[1768781855982,5.48950057,3223.3,3219.5,0.0921574]
[1768781856281,5.48950057,3223.3,3218.9,9.31995402]
[1768781856282,5.45544772,3222.3,3218.9,9.31995402]
[1768781856575,42.00897456,3223.1,3219.0,3.732252]
[1768781856576,0.54554477,3222.2,3219.0,3.732252]
[1768781856780,3.10155997,3224.2,3220.1,0.0921574]
[1768781856781,12.00897456,3224.2,3220.1,0.0921574]
[1768781856985,1.58966275,3225.0,3220.1,0.0921574]
[1768781856986,6.20212732,3224.7,3220.7,30.0]
[1768781857139,6.20212732,3224.7,3219.8,3.829033]
[1768781857140,5.45544772,3223.3,3219.8,3.829033]
[1768781857338,9.211774,3223.2,3218.9,15.5332567]
[1768781857573,0.05,3224.0,3219.5,0.0921574]
[1768781857574,6.451524,3223.9,3219.5,0.0921574]
[1768781857781,5.45544772,3223.3,3219.6,4.687467]
[1768781858093,5.932,3223.2,3219.6,8.054696]
[1768781858251,5.932,3223.2,3219.5,12.42428948]
[1768781858252,5.45544772,3222.6,3219.5,6.21214474]
[1768781858446,7.907006,3222.5,3219.5,6.21214474]
[1768781858781,0.128,3223.1,3219.5,6.21214474]
[1768781858782,10.730063,3223.0,3219.7,3.07097]
[1768781858952,0.128,3223.1,3219.5,6.21214474]
[1768781858953,5.45544772,3222.4,3219.8,0.350197]
[1768781859292,1.0858063,3222.9,3219.8,0.350197]
[1768781859293,1.0858063,3222.9,3220.4,0.0921574]
[1768781859492,12.06943273,3224.3,3220.7,30.0]
[1768781859702,12.06943273,3224.3,3220.8,6.20963734]
[1768781859703,6.77178,3223.8,3220.8,6.20963734]
[1768781860004,3.10183318,3223.9,3220.9,0.431]
[1768781860187,5.216853,3223.8,3220.8,6.20963734]
[1768781860369,3.22954501,3224.2,3220.9,23.932803]
[1768781860569,5.53174,3224.0,3220.8,6.20963734]
[1768781860769,5.53174,3224.0,3219.6,16.04786507]
[1768781860770,5.53174,3224.0,3216.6,0.2304]
[1768781860771,0.7114211,3220.7,3216.6,0.2304]
[1768781861011,1.3,3223.9,3215.8,7.642449]
[1768781861012,0.05,3219.3,3215.8,7.642449]
[1768781861205,0.0921574,3217.0,3215.4,13.37293942]
[1768781861404,0.0921574,3217.3,3215.4,13.37293942]
[1768781861405,2.5853074,3216.9,3215.9,3.10954942]
[1768781861701,2.49315,3216.9,3216.1,3.10935605]
[1768781861904,2.49315,3216.9,3216.2,0.431]
[1768781862066,2.49315,3217.3,3216.2,0.46209259]
[1768781862267,0.0921574,3217.2,3216.2,0.46209259]
[1768781862488,0.0921574,3216.9,3215.4,16.05192178]
[1768781862688,2.49315,3216.3,3215.4,16.05196736]
[1768781862898,0.0921574,3217.5,3213.6,1.53362434]
[1768781862899,0.0921574,3219.1,3216.0,3.10945273]
[1768781863098,0.0921574,3219.1,3216.1,3.78796]
[1768781863099,0.0921574,3218.7,3216.1,3.78796]
[1768781863275,0.0921574,3218.3,3216.1,2.61996]
[1768781863490,0.0921574,3218.7,3216.3,26.75198942]
[1768781863703,0.0921574,3219.7,3216.6,9.32661816]
[1768781863887,0.0921574,3219.1,3216.7,0.00706935]
[1768781864275,0.0921574,3218.6,3216.7,0.00706935]
[1768781864579,0.0921574,3219.1,3216.8,0.431]
[1768781864996,0.0921574,3219.1,3216.9,2.5701]
[1768781865204,0.0921574,3219.1,3217.0,2.5701]
[1768781865523,0.0921574,3219.1,3216.9,0.03108582]
[1768781865524,0.0921574,3219.5,3217.2,18.42249942]
[1768781865691,0.128,3220.7,3217.5,12.94193942]
[1768781865872,12.06943273,3222.6,3217.7,27.70264042]
[1768781865873,0.0921574,3220.6,3217.7,27.70264042]
[1768781866074,0.0921574,3220.6,3217.4,15.5404985]
[1768781866075,0.0921574,3220.6,3217.9,9.193249]
[1768781866377,3.10344516,3222.3,3218.4,12.94193942]
[1768781866573,0.0921574,3221.3,3218.9,12.94193942]
[1768781866874,0.0921574,3220.7,3219.0,0.431]
[1768781867102,0.0921574,3221.3,3218.9,12.94193942]
[1768781867286,0.0921574,3221.3,3219.0,0.431]
[1768781867287,0.0921574,3220.9,3219.0,0.431]
[1768781867609,0.0921574,3220.9,3218.9,12.94193942]
[1768781867610,0.0421574,3220.9,3218.9,12.94193942]
[1768781867863,0.0421574,3220.9,3219.1,6.64390173]
[1768781868036,0.0421574,3220.9,3219.2,0.02439733]
[1768781868194,8.60233921,3220.9,3217.8,12.94193942]
[1768781868394,8.60233921,3220.9,3218.0,8.05799]
[1768781868395,0.86023392,3220.8,3218.0,8.05799]
[1768781868574,0.86023392,3220.8,3217.9,12.94193942]
[1768781868575,0.0921574,3220.5,3217.9,12.94193942]
[1768781868798,0.0921574,3220.0,3217.9,12.94193942]
[1768781869008,0.0921574,3220.0,3218.0,0.45521079]
[1768781869216,0.0921574,3220.5,3219.1,3.10642413]
[1768781869417,0.0921574,3221.4,3219.2,0.45520176]
[1768781869791,0.0921574,3221.4,3219.3,9.31879599]
[1768781869988,0.0921574,3221.4,3219.4,0.02420025]
[1768781870298,0.0921574,3221.8,3219.4,0.02420025]
[1768781870504,0.0921574,3222.2,3219.6,12.94193942]
[1768781870684,0.0921574,3222.2,3219.4,0.02420025]
[1768781870685,0.0921574,3222.7,3219.9,12.94193942]
[1768781870879,0.0921574,3222.7,3219.8,14.760701]
[1768781870880,0.0921574,3222.7,3219.4,9.55176]
[1768781870881,0.0921574,3222.0,3219.4,9.55176]
[1768781871113,0.0921574,3222.7,3220.1,6.22706]
[1768781871488,0.0921574,3222.7,3220.0,0.431]
[1768781871489,0.0921574,3222.7,3220.2,27.70264042]
[1768781871801,0.0921574,3222.7,3220.0,0.431]
[1768781871802,0.001,3223.0,3220.8,12.94193942]
[1768781872004,0.001,3223.0,3220.9,13.25672]
[1768781872176,0.0921574,3224.8,3221.2,12.94193942]
[1768781872379,3.10108447,3224.7,3221.4,12.94193942]
[1768781872618,5.43359459,3224.7,3221.6,14.760701]
[1768781872934,0.54335946,3224.6,3221.6,14.760701]
[1768781873216,0.54335946,3224.6,3221.7,0.431]
[1768781873391,5.43359459,3224.5,3221.5,14.760701]
[1768781873594,5.43359459,3224.5,3221.4,12.94193942]
[1768781873912,11.597619,3223.7,3221.0,3.10461888]
[1768781874118,0.0921574,3224.0,3220.3,12.03414503]
[1768781874119,5.43359459,3223.1,3220.3,12.03414503]
[1768781874335,1.70312136,3223.6,3220.3,12.03414503]
[1768781874336,1.79527876,3223.6,3220.5,10.2871]
[1768781874478,5.43359459,3224.0,3221.4,3.10424039]
[1768781874680,5.43359459,3224.0,3221.4,6.20848078]
[1768781874880,3.10144837,3224.3,3220.5,12.03414503]
[1768781874881,5.43359459,3223.4,3221.5,0.431]
[1768781875117,5.43359459,3223.4,3221.6,0.431]
[1768781875290,22.967669,3223.6,3220.5,12.03414503]
[1768781875621,2.84012636,3223.5,3221.4,6.20847129]
[1768781875778,6.454426,3224.2,3221.5,0.431]
[1768781875986,4.366009,3224.2,3221.6,0.431]
[1768781876214,0.2201574,3224.1,3220.9,12.03414503]
[1768781876430,5.43359459,3223.9,3221.7,0.26612028]
[1768781876621,5.43359459,3223.9,3220.6,9.31503444]
[1768781876622,5.43359459,3223.2,3220.6,3.10501148]
[1768781876794,0.54335946,3223.1,3220.7,0.74150115]
[1768781877134,5.43359459,3223.1,3220.8,0.431]
[1768781877412,5.43359459,3223.1,3220.9,0.431]
[1768781877612,0.0921574,3223.6,3220.9,0.431]
[1768781877613,5.52575199,3223.6,3220.9,0.431]
[1768781877837,5.52575199,3223.6,3220.5,3.13615897]
[1768781877838,6.20578378,3222.8,3221.0,0.431]
[1768781877981,5.43359459,3222.7,3220.0,0.0310559]
[1768781878185,0.0921574,3223.5,3220.6,14.760701]
[1768781878406,5.43359459,3224.1,3220.5,12.42040812]
[1768781878407,3.10173697,3224.0,3220.9,26.79484603]
[1768781878614,3.10173697,3224.0,3221.1,14.760701]
[1768781878775,3.10144837,3224.3,3221.3,9.6246]
[1768781878979,3.10144837,3224.3,3220.5,15.61767342]
[1768781878980,11.63649133,3224.3,3221.5,3.71442]
[1768781879219,1.17286487,3224.2,3221.6,0.431]
[1768781879604,1.17286487,3224.2,3221.4,12.03414503]
[1768781879605,1.17286487,3224.2,3221.7,0.431]
[1768781879824,6.20328152,3224.1,3221.8,3.10385498]
[1768781880132,1.17286487,3224.2,3221.8,3.10385498]
[1768781880133,1.17286487,3224.2,3221.8,6.20770996]
[1768781880335,1.17286487,3224.2,3220.9,1.118]
[1768781880336,0.0921574,3223.5,3220.3,12.03414503]
[1768781880535,5.52575199,3223.5,3220.8,3.10476005]
[1768781880762,0.0921574,3223.9,3220.9,3.53471592]
[1768781880898,0.0921574,3223.9,3221.0,3.89497]
[1768781881238,0.0921574,3223.9,3220.7,12.03414503]
[1768781881411,0.0921574,3222.6,3219.7,13.15214503]
[1768781881605,0.0921574,3221.8,3219.7,12.03414503]
[1768781881921,3.10395133,3221.7,3218.7,6.21368874]
[1768781882099,3.10395133,3221.7,3218.7,3.10684437]
[1768781882100,5.43359459,3221.3,3218.7,3.10684437]
[1768781882316,12.41580532,3221.7,3217.6,12.03414503]
[1768781882317,0.0921574,3220.2,3217.6,12.03414503]
[1768781882639,5.43359459,3219.7,3217.1,0.002]
[1768781882939,0.0921574,3219.8,3217.2,0.43]
[1768781882940,5.43359459,3219.0,3217.2,0.43]
[1768781883146,5.43359459,3219.0,3217.3,0.43]
[1768781883147,0.63551686,3218.9,3217.3,0.43]
[1768781883355,0.63551686,3218.9,3217.3,0.24764479]
[1768781883356,0.54335946,3218.9,3217.3,0.24764479]
[1768781883496,12.039185,3219.6,3217.3,0.24764479]
[1768781883708,8.798828,3218.9,3217.4,0.43]
[1768781883957,8.798828,3218.9,3217.1,0.002]
[1768781883958,0.43,3217.5,3216.0,0.03109452]
[1768781884403,0.43,3217.5,3215.6,0.03109839]
[1768781884605,0.43,3217.5,3215.5,12.03614503]
[1768781885017,0.43,3217.5,3215.5,0.002]
[1768781885204,0.43,3217.5,3215.6,0.43]
[1768781885556,0.43,3217.5,3215.7,3.13349]
[1768781885756,0.43,3217.5,3215.6,0.43]
[1768781885757,0.43,3217.5,3215.9,26.79484603]
[1768781886048,3.10625054,3219.4,3216.3,12.03414503]
[1768781886232,0.31984079,3219.3,3216.5,12.03414503]
[1768781886536,5.43359459,3219.9,3216.9,12.03414503]
[1768781886537,11.089694,3219.9,3216.9,12.03414503]
[1768781886711,2.5413,3219.9,3216.9,12.03414503]
[1768781887038,6.21118012,3220.0,3217.1,14.570314]
[1768781887538,3.19765101,3220.1,3217.1,9.17729]
[1768781887716,0.3197651,3220.0,3217.1,3.02497]
[1768781887914,6.21156592,3219.8,3217.0,3.10848616]
[1768781888121,6.21156592,3219.8,3217.2,0.431]
[1768781888315,3.10578296,3219.8,3217.2,0.431]
[1768781888505,3.10578296,3219.8,3216.9,12.03414503]
[1768781888506,5.43359459,3219.4,3216.9,12.03414503]
[1768781888708,5.43359459,3219.4,3216.0,3.10942089]
[1768781888709,0.54335946,3219.3,3216.8,3.10865523]
[1768781888908,17.471922,3219.6,3217.0,3.10848616]
[1768781889108,0.0921574,3219.7,3217.0,3.10848616]
[1768781889308,2.531534,3219.6,3216.9,3.53955802]
[1768781889644,2.531534,3219.6,3216.0,12.03414503]
[1768781889645,5.56159459,3219.3,3217.0,0.43]
[1768781889803,11.525144,3219.2,3216.0,12.03414503]
[1768781890009,7.37823104,3219.1,3216.2,3.10925468]
[1768781890312,7.37823104,3219.1,3216.0,12.03414503]
[1768781890313,11.468065,3218.5,3216.3,0.43]
[1768781890622,6.00514,3218.5,3216.3,0.43]
[1768781890810,4.207414,3218.5,3216.3,0.43]
[1768781891008,0.0921574,3218.6,3216.3,0.43]
[1768781891213,28.150932,3218.4,3215.5,0.002]
[1768781891537,26.712315,3218.4,3215.6,3.53976736]
[1768781891728,3.768,3218.1,3216.0,3.10944783]
[1768781891928,3.768,3218.1,3215.7,0.43]
[1768781891929,0.0921574,3218.2,3215.7,0.43]
[1768781892145,3.19949265,3218.2,3215.8,6.21928691]
[1768781892445,0.31994926,3218.1,3215.9,0.66492869]
[1768781892646,0.31994926,3218.1,3215.5,0.002]
[1768781892945,10.700603,3217.9,3215.6,0.43]
[1768781893131,5.152,3217.9,3215.7,3.10972535]
[1768781893349,5.152,3217.9,3215.6,0.43]
[1768781893350,20.231119,3217.7,3215.5,0.002]
[1768781893509,2.03232764,3217.6,3215.6,0.43]
[1768781893709,16.933098,3217.7,3215.6,0.43]
[1768781894112,5.43359459,3217.2,3215.5,0.002]
[1768781894307,0.0921574,3217.4,3215.5,0.002]
[1768781894638,5.43359459,3217.2,3215.6,0.428]
[1768781894853,5.43359459,3217.2,3215.7,0.42751222]
[1768781895067,0.54335946,3217.1,3215.5,0.002]
[1768781895434,0.54335946,3217.1,3215.0,1e-08]
[1768781895665,0.63551686,3217.1,3215.0,1e-08]
[1768781896164,20.270399,3216.8,3215.1,0.43]
[1768781896676,20.270399,3216.8,3214.1,6.22250331]
[1768781896677,5.43359459,3216.5,3215.2,0.43]
[1768781896866,5.43359459,3216.5,3215.3,0.43]
[1768781896867,0.54335946,3216.4,3215.3,0.43]
[1768781897088,0.54335946,3216.4,3215.1,0.43]
[1768781897366,30.0,3216.8,3214.9,0.43]
[1768781897553,30.0,3216.8,3214.0,14.28552704]
[1768781897764,30.0,3216.8,3214.0,11.17414504]
[1768781897933,30.0,3216.8,3212.3,3.11294288]
[1768781897934,5.43359459,3216.2,3213.3,3.11199435]
[1768781898132,9.32806815,3216.1,3213.1,12.03414503]
[1768781898355,2.25747,3215.9,3213.1,12.03414503]
[1768781898555,2.25747,3215.9,3213.2,0.43]
[1768781898763,2.25747,3215.9,3213.1,12.03414503]
[1768781898764,5.43359459,3215.5,3213.1,12.03414503]
[1768781898964,22.005059,3215.4,3213.2,0.43]
[1768781899280,1.47616627,3216.0,3213.2,12.46414503]
[1768781899446,6.2187121,3216.1,3213.2,12.46414503]
[1768781899447,0.76948784,3215.9,3213.2,12.03414503]
[1768781899633,0.76948784,3215.9,3213.9,3.11148344]
[1768781899838,0.76948784,3215.9,3213.9,3.11146521]
[1768781900038,0.76948784,3215.9,3213.5,12.03414503]
[1768781900339,3.10867943,3216.8,3213.8,12.03414503]
[1768781900551,11.796038,3216.9,3213.8,12.03414503]
[1768781900734,0.54335946,3217.1,3214.2,12.03414503]
[1768781900950,6.21446104,3218.3,3214.9,12.03414503]